fUST/lending_fUST_20240704
["ID","MTS","AMOUNT","RATE_DAILY","PERIOD"]
[331151507,1720108247246,-1178.71,0.00013972,2]
[331151508,1720108247255,-500.0,0.00013972,2]
[331151509,1720108247264,-500.0,0.00013972,2]
[331151510,1720108247273,-1185.06,0.00013972,2]
[331151511,1720108247282,-500.0,0.00013972,2]
[331151512,1720108247291,-500.0,0.00013972,2]
[331151513,1720108247301,-1490.15,0.00013972,2]
[331151514,1720108247310,-1073.34,0.00013972,2]
[331151515,1720108247320,-500.0,0.00013972,2]
[331151516,1720108247330,-151.0,0.00013972,2]
[331151517,1720108247339,-151.0,0.00013972,2]
[331151518,1720108247352,-500.0,0.00013972,2]
[331151519,1720108247361,-634.247541,0.00013972,2]
[331151520,1720108247371,-500.0,0.00013972,2]
[331151521,1720108247380,-634.247541,0.00013972,2]
[331151522,1720108247390,-1394.28,0.00013972,2]
[331151523,1720108247400,-586.93,0.00013972,2]
[331151524,1720108247409,-634.247541,0.00013972,2]
[331151525,1720108247419,-634.247541,0.00013972,2]
[331151526,1720108247429,-448.097392,0.00013972,2]
[331151527,1720108247440,-448.097392,0.00013972,2]
[331151528,1720108247450,-3891.03,0.00013972,2]
[331151529,1720108247459,-500.0,0.00014,2]
[331151530,1720108247469,-306.8349406,0.00014029,2]
[331151531,1720108247481,-1602.96737924,0.00014048,2]
[331151532,1720108247491,-805.71,0.00014053,2]
[331151533,1720108247505,-805.71,0.00014053,2]
[331151534,1720108247515,-805.71,0.00014053,2]
[331151535,1720108247524,-805.71,0.00014053,2]
[331151536,1720108247533,-805.9244566,0.00014053,2]
[331151537,1720108247543,-181.84215111,0.00014054,2]
[331151538,1720108247552,-155.0,0.00014054,2]
[331151539,1720108247561,-634.247541,0.00014054,2]
[331151540,1720108247570,-634.247541,0.00014054,2]
[331151541,1720108247579,-448.097392,0.00014054,2]
[331151542,1720108247589,-500.0,0.000141,2]
[331151543,1720108247601,-620.00037616,0.00014118,2]
[331151544,1720108247611,-500.0,0.0001415,2]
[331151545,1720108247620,-150.0,0.00014158,2]
[331151546,1720108247630,-877.0,0.00014158,2]
[331151547,1720108247639,-894.828,0.00014158,2]
[331151548,1720108247653,-500.0,0.000142,2]
[331151549,1720108247664,-291.754,0.00014212,2]
[331151550,1720108247681,-151.0,0.00014236,2]
[331151551,1720108247691,-151.0,0.00014236,2]
[331151552,1720108247700,-831.07,0.00014246,2]
[331151553,1720108247710,-724.57,0.00014246,2]
[331151554,1720108247720,-500.0,0.00014246,2]
[331151555,1720108247730,-500.0,0.00014246,2]
[331151556,1720108247740,-500.0,0.00014246,2]
[331151557,1720108247750,-500.0,0.00014246,2]
[331151558,1720108247759,-500.0,0.00014246,2]
[331151559,1720108247769,-500.0,0.00014246,2]
[331151560,1720108247779,-500.0,0.00014246,2]
[331151561,1720108247787,-500.0,0.00014246,2]
[331151562,1720108247797,-500.0,0.00014246,2]
[331151563,1720108247807,-500.0,0.00014246,2]
[331151564,1720108247816,-11900.66,0.00014246,2]
[331151565,1720108247825,-500.0,0.00014246,2]
[331151566,1720108247834,-500.0,0.00014246,2]
[331151567,1720108247843,-500.0,0.00014246,2]
[331151568,1720108247855,-500.0,0.00014246,2]
[331151569,1720108247864,-500.0,0.00014246,2]
[331151570,1720108247873,-570.9,0.00014246,2]
[331151571,1720108247882,-500.0,0.00014246,2]
[331151572,1720108247891,-1266.77,0.00014246,2]
[331151573,1720108247901,-500.0,0.00014246,2]
[331151574,1720108247918,-500.0,0.00014246,2]
[331151575,1720108247928,-500.0,0.00014246,2]
[331151576,1720108247937,-500.0,0.00014246,2]
[331151577,1720108247947,-500.0,0.00014246,2]
[331151578,1720108247956,-1707.27,0.00014246,2]
[331151579,1720108247965,-500.0,0.00014246,2]
[331151580,1720108248067,-151.0,0.00014246,2]
[331151581,1720108248077,-500.0,0.00014246,2]
[331151582,1720108248088,-500.0,0.00014246,2]
[331151583,1720108248098,-500.0,0.00014246,2]
[331151584,1720108248109,-786.47,0.00014246,2]
[331151585,1720108248118,-153.34073236,0.00014246,2]
[331151586,1720108248127,-500.0,0.00014246,2]
[331151587,1720108248137,-500.0,0.00014246,2]
[331151588,1720108248146,-151.0,0.00014246,2]
[331151589,1720108248156,-500.0,0.00014246,2]
[331151590,1720108248165,-512.7,0.00014246,2]
[331151591,1720108248175,-500.0,0.00014246,2]
[331151592,1720108248185,-500.0,0.00014246,2]
[331151593,1720108248195,-1129.56,0.00014246,2]
[331151594,1720108248205,-1513.83,0.00014246,2]
[331151595,1720108248215,-414.76775847,0.00014246,2]
[331151596,1720108248224,-500.0,0.00014246,2]
[331151597,1720108248233,-500.0,0.00014246,2]
[331151598,1720108248242,-500.0,0.00014246,2]
[331151599,1720108248252,-500.0,0.00014246,2]
[331151600,1720108248261,-500.0,0.00014246,2]
[331151601,1720108248270,-500.0,0.00014246,2]
[331151602,1720108248280,-944.71,0.00014246,2]
[331151603,1720108248296,-500.0,0.00014246,2]
[331151604,1720108248305,-500.0,0.00014246,2]
[331151605,1720108248314,-700.66,0.00014246,2]
[331151606,1720108248323,-353.187218,0.00014246,2]
[331151607,1720108248333,-353.187218,0.00014246,2]
[331151608,1720108248342,-353.187218,0.00014246,2]
[331151609,1720108248354,-353.187218,0.00014246,2]
[331151610,1720108248364,-795.56,0.00014246,2]
[331151611,1720108248373,-500.0,0.00014246,2]
[331151612,1720108248383,-500.0,0.00014246,2]
[331151613,1720108248392,-4709.07,0.00014246,2]
[331151614,1720108248401,-500.0,0.00014246,2]
[331151615,1720108248411,-766.15,0.00014246,2]
[331151616,1720108248419,-500.0,0.00014246,2]
[331151617,1720108248428,-500.0,0.00014246,2]
[331151618,1720108248437,-5504.51,0.00014246,2]
[331151619,1720108248446,-500.0,0.00014246,2]
[331151620,1720108248455,-500.0,0.00014246,2]
[331151621,1720108248465,-5620.07,0.00014246,2]
[331151622,1720108248474,-500.0,0.00014246,2]
[331151623,1720108248483,-569.97973244,0.00014246,2]
[331151624,1720108248492,-500.0,0.00014246,2]
[331151625,1720108248502,-500.0,0.00014246,2]
[331151626,1720108248511,-843.72,0.00014246,2]
[331151627,1720108248521,-500.0,0.00014246,2]
[331151628,1720108248530,-715.86,0.00014246,2]
[331151629,1720108248539,-1491.96,0.00014246,2]
[331151630,1720108248549,-500.0,0.00014246,2]
[331151631,1720108248558,-500.0,0.00014246,2]
[331151632,1720108248568,-586.55,0.00014246,2]
[331151633,1720108248577,-500.0,0.00014246,2]
[331151634,1720108248586,-586.55,0.00014246,2]
[331151635,1720108248596,-500.0,0.00014246,2]
[331151636,1720108248607,-9714.11,0.00014246,2]
[331151637,1720108248616,-500.0,0.00014246,2]
[331151638,1720108248625,-561.51,0.00014246,2]
[331151639,1720108248634,-500.0,0.00014246,2]
[331151640,1720108248644,-500.0,0.00014246,2]
[331151641,1720108248655,-686.02,0.00014246,2]
[331151642,1720108248666,-297.98,0.00014246,2]
[331151643,1720108248679,-500.0,0.00014246,2]
[331151644,1720108248689,-500.0,0.00014246,2]
[331151645,1720108248701,-500.0,0.00014246,2]
[331151646,1720108248710,-2457.7,0.00014246,2]
[331151647,1720108248719,-500.0,0.00014246,2]
[331151648,1720108248728,-500.0,0.00014246,2]
[331151649,1720108248738,-1138.99,0.00014246,2]
[331151650,1720108248749,-1065.74,0.00014246,2]
[331151651,1720108248758,-632.23,0.00014246,2]
[331151652,1720108248768,-500.0,0.00014246,2]
[331151653,1720108248777,-500.0,0.00014246,2]
[331151654,1720108248787,-3176.76,0.00014246,2]
[331151655,1720108248796,-500.0,0.00014246,2]
[331151656,1720108248805,-500.0,0.00014246,2]
[331151657,1720108248815,-500.0,0.00014246,2]
[331151658,1720108248824,-510.81311654,0.00014246,2]
[331151659,1720108248833,-500.0,0.00014246,2]
[331151660,1720108248842,-1694.99,0.00014246,2]
[331151661,1720108248853,-500.0,0.00014246,2]
[331151662,1720108248863,-507.81915388,0.00014246,2]
[331151663,1720108248873,-500.0,0.00014246,2]
[331151664,1720108248881,-500.0,0.00014246,2]
[331151665,1720108248891,-151.0,0.00014246,2]
[331151666,1720108248900,-500.0,0.00014246,2]
[331151667,1720108248910,-151.0,0.00014246,2]
[331151668,1720108248919,-151.0,0.00014246,2]
[331151669,1720108248928,-151.0,0.00014246,2]
[331151670,1720108248937,-1424.8,0.00014246,2]
[331151671,1720108248946,-500.0,0.00014246,2]
[331151672,1720108248955,-500.0,0.00014246,2]
[331151673,1720108248963,-500.0,0.00014246,2]
[331151674,1720108248972,-1000.0,0.00014246,2]
[331151675,1720108248981,-500.0,0.00014246,2]
[331151676,1720108248990,-1000.0,0.00014246,2]
[331151677,1720108248999,-1000.0,0.00014246,2]
[331151678,1720108249008,-1000.0,0.00014246,2]
[331151679,1720108249017,-1000.0,0.00014246,2]
[331151680,1720108249026,-1000.0,0.00014246,2]
[331151681,1720108249036,-1000.0,0.00014246,2]
[331151682,1720108249045,-1000.0,0.00014246,2]
[331151683,1720108249054,-1000.0,0.00014246,2]
[331151684,1720108249063,-1000.0,0.00014246,2]
[331151685,1720108249072,-1000.0,0.00014246,2]
[331151686,1720108249081,-1000.0,0.00014246,2]
[331151687,1720108249090,-1000.0,0.00014246,2]
[331151688,1720108249100,-1000.0,0.00014246,2]
[331151689,1720108249109,-607.03,0.00014246,2]
[331151690,1720108249118,-1000.0,0.00014246,2]
[331151691,1720108249128,-1178.27,0.00014246,2]
[331151692,1720108249137,-1000.0,0.00014246,2]
[331151693,1720108249146,-1000.0,0.00014246,2]
[331151694,1720108249156,-1000.0,0.00014246,2]
[331151695,1720108249165,-1000.0,0.00014246,2]
[331151696,1720108249174,-1000.0,0.00014246,2]
[331151697,1720108249184,-1000.0,0.00014246,2]
[331151698,1720108249193,-1000.0,0.00014246,2]
[331151699,1720108249201,-1000.0,0.00014246,2]
[331151700,1720108249210,-1000.0,0.00014246,2]
[331151701,1720108249220,-1000.0,0.00014246,2]
[331151702,1720108249230,-1000.0,0.00014246,2]
[331151703,1720108249239,-1000.0,0.00014246,2]
[331151704,1720108249247,-151.0,0.00014246,2]
[331151705,1720108249256,-1000.0,0.00014246,2]
[331151706,1720108249266,-283.268574,0.00014246,2]
[331151707,1720108249275,-1000.0,0.00014246,2]
[331151708,1720108249284,-1000.0,0.00014246,2]
[331151709,1720108249293,-1000.0,0.00014246,2]
[331151710,1720108249302,-1000.0,0.00014246,2]
[331151711,1720108249312,-817.93,0.00014246,2]
[331151712,1720108249321,-1000.0,0.00014246,2]
[331151713,1720108249331,-1000.0,0.00014246,2]
[331151714,1720108249340,-1141.276981,0.00014246,2]
[331151715,1720108249350,-504.42,0.00014246,2]
[331151716,1720108249360,-509.45,0.00014246,2]
[331151717,1720108249369,-3129.83,0.00014246,2]
[331151718,1720108249378,-500.0,0.00014246,2]
[331151719,1720108249387,-507.71993396,0.00014246,2]
[331151720,1720108249397,-500.0,0.00014246,2]
[331151721,1720108249407,-853.3,0.00014246,2]
[331151722,1720108249416,-500.0,0.00014246,2]
[331151723,1720108249426,-6244.91,0.00014246,2]
[331151724,1720108249435,-500.0,0.00014246,2]
[331151725,1720108249444,-151.0,0.00014246,2]
[331151726,1720108249453,-151.0,0.00014246,2]
[331151727,1720108249462,-500.0,0.00014246,2]
[331151728,1720108249471,-151.0,0.00014246,2]
[331151729,1720108249480,-151.0,0.00014246,2]
[331151730,1720108249490,-18589.09,0.00014246,2]
[331151731,1720108249499,-500.0,0.00014246,2]
[331151732,1720108249509,-500.0,0.00014246,2]
[331151733,1720108249518,-500.0,0.00014246,2]
[331151734,1720108249531,-500.0,0.00014246,2]
[331151735,1720108249541,-500.0,0.00014246,2]
[331151736,1720108249550,-1967.99,0.00014246,2]
[331151737,1720108249559,-890.25,0.00014246,2]
[331151738,1720108249569,-500.0,0.00014246,2]
[331151739,1720108249578,-3495.85,0.00014246,2]
[331151740,1720108249587,-500.0,0.00014246,2]
[331151741,1720108249596,-500.0,0.00014246,2]
[331151742,1720108249607,-500.0,0.00014246,2]
[331151743,1720108249616,-8052.85,0.00014246,2]
[331151744,1720108249626,-500.0,0.00014246,2]
[331151745,1720108249636,-1178.71,0.00014246,2]
[331151746,1720108249645,-500.0,0.00014246,2]
[331151747,1720108249658,-500.0,0.00014246,2]
[331151748,1720108249668,-1185.06,0.00014246,2]
[331151749,1720108249678,-500.0,0.00014246,2]
[331151750,1720108249688,-1490.15,0.00014246,2]
[331151751,1720108249698,-1073.34,0.00014246,2]
[331151752,1720108249707,-500.0,0.00014246,2]
[331151753,1720108249717,-151.0,0.00014246,2]
[331151754,1720108249726,-151.0,0.00014246,2]
[331151755,1720108249736,-500.0,0.00014246,2]
[331151756,1720108249746,-1394.28,0.00014246,2]
[331151757,1720108249755,-634.247541,0.00014246,2]
[331151758,1720108249765,-634.247541,0.00014246,2]
[331151759,1720108249774,-586.93,0.00014246,2]
[331151760,1720108249783,-634.247541,0.00014246,2]
[331151761,1720108249792,-634.247541,0.00014246,2]
[331151762,1720108249802,-448.097392,0.00014246,2]
[331151763,1720108249811,-448.097392,0.00014246,2]
[331151764,1720108249820,-153.0,0.00014247,2]
[331151765,1720108249829,-500.0,0.0001425,2]
[331151766,1720108249839,-500.0,0.000143,2]
[331151767,1720108249850,-50957.59096738,0.00014328,2]
[331151768,1720108249859,-151.0,0.00014328,2]
[331151769,1720108249868,-151.0,0.00014328,2]
[331151770,1720108249877,-151.0,0.00014328,2]
[331151771,1720108249887,-151.0,0.00014328,2]
[331151772,1720108249896,-169.56583,0.00014328,2]
[331151773,1720108249905,-151.0,0.00014328,2]
[331151774,1720108249914,-150.0,0.0001433,2]
[331151775,1720108249925,-500.0,0.0001435,2]
[331151776,1720108249934,-500.0,0.000144,2]
[331151777,1720108249944,-500.0,0.0001445,2]
[331151778,1720108249953,-83481.54645762,0.000145,2]
[331151779,1720108249963,-500.0,0.000145,2]
[331151780,1720108249973,-151.0,0.000145,2]
[331151781,1720108249986,-151.0,0.000145,2]
[331151782,1720108250003,-353.187218,0.000145,2]
[331151783,1720108250013,-353.187218,0.000145,2]
[331151784,1720108250022,-151.0,0.000145,2]
[331151785,1720108250031,-151.0,0.000145,2]
[331151786,1720108250041,-634.247541,0.000145,2]
[331151787,1720108250050,-634.247541,0.000145,2]
[331151788,1720108250060,-831.07,0.0001452,2]
[331151789,1720108250069,-724.57,0.0001452,2]
[331151790,1720108250078,-500.0,0.0001452,2]
[331151791,1720108250087,-500.0,0.0001452,2]
[331151792,1720108250097,-500.0,0.0001452,2]
[331151793,1720108250108,-500.0,0.0001452,2]
[331151794,1720108250117,-500.0,0.0001452,2]
[331151795,1720108250127,-500.0,0.0001452,2]
[331151796,1720108250135,-500.0,0.0001452,2]
[331151797,1720108250240,-500.0,0.0001452,2]
[331151798,1720108250250,-500.0,0.0001452,2]
[331151799,1720108250260,-463.60221755,0.0001452,2]
[331151800,1720108250270,-11900.66,0.0001452,2]
[331151801,1720108250279,-500.0,0.0001452,2]
[331151802,1720108250288,-500.0,0.0001452,2]
[331151803,1720108250298,-500.0,0.0001452,2]
[331151804,1720108250307,-500.0,0.0001452,2]
[331151805,1720108250316,-500.0,0.0001452,2]
[331151806,1720108250325,-570.9,0.0001452,2]
[331151807,1720108250334,-500.0,0.0001452,2]
[331151808,1720108250344,-1266.77,0.0001452,2]
[331151809,1720108250355,-500.0,0.0001452,2]
[331151810,1720108250364,-500.0,0.0001452,2]
[331151811,1720108250373,-500.0,0.0001452,2]
[331151812,1720108250383,-500.0,0.0001452,2]
[331151813,1720108250392,-385.45833704,0.0001452,2]
[331151814,1720108250402,-1707.27,0.0001452,2]
[331151815,1720108250418,-500.0,0.0001452,2]
[331151816,1720108250428,-202.15073,0.0001452,2]
[331151817,1720108250438,-500.0,0.0001452,2]
[331151818,1720108250447,-331.22478699,0.0001452,2]
[331151819,1720108250457,-786.47,0.0001452,2]
[331151820,1720108250467,-500.0,0.0001452,2]
[331151821,1720108250476,-500.0,0.0001452,2]
[331151822,1720108250485,-500.0,0.0001452,2]
[331151823,1720108250495,-151.0,0.0001452,2]
[331151824,1720108250504,-512.7,0.0001452,2]
[331151825,1720108250514,-500.0,0.0001452,2]
[331151826,1720108250523,-500.0,0.0001452,2]
[331151827,1720108250532,-1129.56,0.0001452,2]
[331151828,1720108250542,-1513.83,0.0001452,2]
[331151829,1720108250552,-500.0,0.0001452,2]
[331151830,1720108250561,-540.62764259,0.0001452,2]
[331151831,1720108250570,-500.0,0.0001452,2]
[331151832,1720108250579,-500.0,0.0001452,2]
[331151833,1720108250589,-500.0,0.0001452,2]
[331151834,1720108250598,-500.0,0.0001452,2]
[331151835,1720108250608,-944.71,0.0001452,2]
[331151836,1720108250618,-500.0,0.0001452,2]
[331151837,1720108250627,-500.0,0.0001452,2]
[331151838,1720108250636,-700.66,0.0001452,2]
[331151839,1720108250646,-353.187218,0.0001452,2]
[331151840,1720108250660,-353.187218,0.0001452,2]
[331151841,1720108250671,-795.56,0.0001452,2]
[331151842,1720108250680,-500.0,0.0001452,2]
[331151843,1720108250689,-500.0,0.0001452,2]
[331151844,1720108250699,-4709.07,0.0001452,2]
[331151845,1720108250708,-500.0,0.0001452,2]
[331151846,1720108250717,-766.15,0.0001452,2]
[331151847,1720108250726,-500.0,0.0001452,2]
[331151848,1720108250735,-500.0,0.0001452,2]
[331151849,1720108250748,-5504.51,0.0001452,2]
[331151850,1720108250758,-617.54,0.0001452,2]
[331151851,1720108250767,-500.0,0.0001452,2]
[331151852,1720108250777,-5620.07,0.0001452,2]
[331151853,1720108250786,-500.0,0.0001452,2]
[331151854,1720108250795,-500.0,0.0001452,2]
[331151855,1720108250805,-500.0,0.0001452,2]
[331151856,1720108250814,-843.72,0.0001452,2]
[331151857,1720108250824,-500.0,0.0001452,2]
[331151858,1720108250834,-715.86,0.0001452,2]
[331151859,1720108250845,-1491.96,0.0001452,2]
[331151860,1720108250857,-500.0,0.0001452,2]
[331151861,1720108250866,-500.0,0.0001452,2]
[331151862,1720108250876,-500.0,0.0001452,2]
[331151863,1720108250890,-586.55,0.0001452,2]
[331151864,1720108250901,-586.55,0.0001452,2]
[331151865,1720108250910,-500.0,0.0001452,2]
[331151866,1720108250919,-9714.11,0.0001452,2]
[331151867,1720108250929,-500.0,0.0001452,2]
[331151868,1720108250939,-561.51,0.0001452,2]
[331151869,1720108250948,-500.0,0.0001452,2]
[331151870,1720108250958,-639.29,0.0001452,2]
[331151871,1720108250967,-686.02,0.0001452,2]
[331151872,1720108250976,-578.82,0.0001452,2]
[331151873,1720108250985,-500.0,0.0001452,2]
[331151874,1720108250995,-500.0,0.0001452,2]
[331151875,1720108251004,-2457.7,0.0001452,2]
[331151876,1720108251013,-357.95,0.0001452,2]
[331151877,1720108251023,-500.0,0.0001452,2]
[331151878,1720108251032,-1138.99,0.0001452,2]
[331151879,1720108251041,-1065.74,0.0001452,2]
[331151880,1720108251050,-632.23,0.0001452,2]
[331151881,1720108251059,-500.0,0.0001452,2]
[331151882,1720108251068,-3176.76,0.0001452,2]
[331151883,1720108251078,-500.0,0.0001452,2]
[331151884,1720108251087,-500.0,0.0001452,2]
[331151885,1720108251096,-643.57946218,0.0001452,2]
[331151886,1720108251107,-500.0,0.0001452,2]
[331151887,1720108251116,-1694.99,0.0001452,2]
[331151888,1720108251125,-500.0,0.0001452,2]
[331151889,1720108251134,-500.0,0.0001452,2]
[331151890,1720108251143,-453.9198927,0.0001452,2]
[331151891,1720108251152,-151.0,0.0001452,2]
[331151892,1720108251161,-151.0,0.0001452,2]
[331151893,1720108251170,-1424.8,0.0001452,2]
[331151894,1720108251180,-500.0,0.0001452,2]
[331151895,1720108251189,-500.0,0.0001452,2]
[331151896,1720108251198,-500.0,0.0001452,2]
[331151897,1720108251207,-500.0,0.0001452,2]
[331151898,1720108251216,-1178.27,0.0001452,2]
[331151899,1720108251226,-607.03,0.0001452,2]
[331151900,1720108251235,-817.93,0.0001452,2]
[331151901,1720108251244,-504.42,0.0001452,2]
[331151902,1720108251253,-509.45,0.0001452,2]
[331151903,1720108251262,-3129.83,0.0001452,2]
[331151904,1720108251271,-500.0,0.0001452,2]
[331151905,1720108251280,-500.0,0.0001452,2]
[331151906,1720108251289,-853.3,0.0001452,2]
[331151907,1720108251299,-500.0,0.0001452,2]
[331151908,1720108251308,-6244.91,0.0001452,2]
[331151909,1720108251318,-500.0,0.0001452,2]
[331151910,1720108251327,-151.0,0.0001452,2]
[331151911,1720108251336,-151.0,0.0001452,2]
[331151912,1720108251346,-500.0,0.0001452,2]
[331151913,1720108251358,-18589.09,0.0001452,2]
[331151914,1720108251367,-500.0,0.0001452,2]
[331151915,1720108251377,-500.0,0.0001452,2]
[331151916,1720108251386,-500.0,0.0001452,2]
[331151917,1720108251395,-1967.99,0.0001452,2]
[331151918,1720108251405,-890.25,0.0001452,2]
[331151919,1720108251415,-500.0,0.0001452,2]
[331151920,1720108251424,-3495.85,0.0001452,2]
[331151921,1720108251434,-500.0,0.0001452,2]
[331151922,1720108251443,-500.0,0.0001452,2]
[331151923,1720108251452,-500.0,0.0001452,2]
[331151924,1720108251462,-8052.85,0.0001452,2]
[331151925,1720108251471,-500.0,0.0001452,2]
[331151926,1720108251480,-1178.71,0.0001452,2]
[331151927,1720108251489,-500.0,0.0001452,2]
[331151928,1720108251499,-500.0,0.0001452,2]
[331151929,1720108251508,-500.0,0.0001452,2]
[331151930,1720108251518,-1185.06,0.0001452,2]
[331151931,1720108251528,-1490.15,0.0001452,2]
[331151932,1720108251537,-1073.34,0.0001452,2]
[331151933,1720108251547,-248.26051819,0.0001452,2]
[331151934,1720108251556,-500.0,0.0001452,2]
[331151935,1720108251566,-151.0,0.0001452,2]
[331151936,1720108251575,-1394.28,0.0001452,2]
[331151937,1720108251585,-151.0,0.0001452,2]
[331151938,1720108251594,-634.247541,0.0001452,2]
[331151939,1720108251608,-586.93,0.0001452,2]
[331151940,1720108251617,-634.247541,0.0001452,2]
[331151941,1720108251627,-587.0,0.00014542,2]
[331151942,1720108251637,-500.0,0.0001455,2]
[331151943,1720108251647,-309.56649315,0.00014568,2]
[331151944,1720108251657,-1000.0,0.00014753,2]
[331151945,1720108251667,-416.41705199,0.00014758,2]
[331151946,1720108251682,-1000.0,0.00014758,2]
[331151947,1720108251691,-1140.95097749,0.00014794,2]
[331151948,1720108251700,-831.07,0.00014794,2]
[331151949,1720108251711,-724.57,0.00014794,2]
[331151950,1720108251721,-500.0,0.00014794,2]
[331151951,1720108251730,-500.0,0.00014794,2]
[331151952,1720108251739,-500.0,0.00014794,2]
[331151953,1720108251748,-500.0,0.00014794,2]
[331151954,1720108251759,-500.0,0.00014794,2]
[331151955,1720108251769,-500.0,0.00014794,2]
[331151956,1720108251778,-564.15118506,0.00014794,2]
[331151957,1720108251787,-282.18111528,0.00014794,2]
[331151958,1720108251797,-500.0,0.00014794,2]
[331151959,1720108251807,-11900.66,0.00014794,2]
[331151960,1720108251818,-500.0,0.00014794,2]
[331151961,1720108251827,-500.0,0.00014794,2]
[331151962,1720108251837,-500.0,0.00014794,2]
[331151963,1720108251847,-500.0,0.00014794,2]
[331151964,1720108251860,-500.0,0.00014794,2]
[331151965,1720108251870,-570.9,0.00014794,2]
[331151966,1720108251879,-1266.77,0.00014794,2]
[331151967,1720108251888,-500.0,0.00014794,2]
[331151968,1720108251897,-500.0,0.00014794,2]
[331151969,1720108251907,-257.60394639,0.00014794,2]
[331151970,1720108251915,-500.0,0.00014794,2]
[331151971,1720108251924,-1707.27,0.00014794,2]
[331151972,1720108251934,-500.0,0.00014794,2]
[331151973,1720108251944,-500.0,0.00014794,2]
[331151974,1720108251953,-786.47,0.00014794,2]
[331151975,1720108251963,-500.0,0.00014794,2]
[331151976,1720108251973,-500.0,0.00014794,2]
[331151977,1720108251983,-154.45098378,0.00014794,2]
[331151978,1720108251993,-151.0,0.00014794,2]
[331151979,1720108252002,-151.0,0.00014794,2]
[331151980,1720108252011,-512.7,0.00014794,2]
[331151981,1720108252021,-496.98764022,0.00014794,2]
[331151982,1720108252030,-500.0,0.00014794,2]
[331151983,1720108252040,-1129.56,0.00014794,2]
[331151984,1720108252049,-1513.83,0.00014794,2]
[331151985,1720108252058,-500.0,0.00014794,2]
[331151986,1720108252067,-500.0,0.00014794,2]
[331151987,1720108252077,-500.0,0.00014794,2]
[331151988,1720108252086,-500.0,0.00014794,2]
[331151989,1720108252096,-500.0,0.00014794,2]
[331151990,1720108252108,-944.71,0.00014794,2]
[331151991,1720108252117,-500.0,0.00014794,2]
[331151992,1720108252127,-700.66,0.00014794,2]
[331151993,1720108252136,-353.187218,0.00014794,2]
[331151994,1720108252145,-353.187218,0.00014794,2]
[331151995,1720108252155,-353.187218,0.00014794,2]
[331151996,1720108252251,-353.187218,0.00014794,2]
[331151997,1720108252261,-795.56,0.00014794,2]
[331151998,1720108252271,-500.0,0.00014794,2]
[331151999,1720108252280,-500.0,0.00014794,2]
[331152000,1720108252289,-4709.07,0.00014794,2]
[331152001,1720108252299,-500.0,0.00014794,2]
[331152002,1720108252308,-766.15,0.00014794,2]
[331152003,1720108252317,-500.0,0.00014794,2]
[331152004,1720108252327,-500.0,0.00014794,2]
[331152005,1720108252337,-5504.51,0.00014794,2]
[331152006,1720108252347,-500.0,0.00014794,2]